[Event "4NCL 2023-2024"]
[Site "Daventry"]
[Date "2024.05.06"]
[Round "11.19"]
[White "Williams, Simon K"]
[Black "Makkar, Rajat"]
[Result "0-1"]
[ECO "D10"]
[WhiteElo "2467"]
[BlackElo "2455"]
[Annotator "TA"]
[PlyCount "106"]
[EventDate "2023.11.11"]
[EventType "team-tourn"]
[EventCountry "ENG"]
[SourceTitle "playchess.com"]
[Source "ChessBase"]
[SourceQuality "1"]
[TimeControl "40/6000+30:3000+30"]

{[%evp 26,106,-18,-9,0,-31,-34,-46,-35,-38,-16,-5,-8,-31,-13,-22,-16,-27,-16,-17,0,-48,-45,-47,-49,-63,-58,-67,-52,-49,0,-44,-42,-58,-53,-53,-79,-77,-71,-66,-67,-63,-47,-46,-16,-189,-184,-158,-205,-171,-178,-181,-198,-197,-204,-206,-202,-208,-203,-213,-217,-310,-308,-349,-333,-422,-436,-523,-520,-525,-518,-491,-487,-414,-404,-404,-386,-360,-344,-29974,-29975,-29973,-29964]} 1. d4 {[%emt 0:05:40]} d5 {[%emt 0:00:16]} 2. c4 {[%emt 0:00:17]} c6 {[%emt 0:00:29]} 3. cxd5 {[%emt 0:00:30]} cxd5 {[%emt 0:01:00]} 4. Nc3 {[%emt 0:00:15]} Nf6 {[%emt 0:00:11]} 5. f3 {[%emt 0:00:56]} Qb6 {[%emt 0:00:28]} 6. e4 {[%emt 0:02:04] D10: Slav Defence: 3 cxd5 (without early Nf3) and 3 Nc3.} dxe4 {[%emt 0:00:05]} 7. fxe4 {[%emt 0:00:10]} e5 {[%emt 0:00:04]} 8. Bb5+ {[%emt 0:01:51]} Nc6 {[%emt 0:00:07]} 9. d5 {[%emt 0:01:25]} Bb4 {[%emt 0:00:05]} 10. Qd3 {[%emt 0:01:12]} a6 {[%emt 0:00:13]} 11. Ba4 {[%emt 0:00:54]} Qa5 {[%emt 0:00:08]} 12. Bd1 {[%emt 0:01:53]} Nd4 {[%emt 0:00:04]} 13. Nge2 {[%emt 0:00:27]} O-O {[%emt 0:01:50]} 14. O-O {[%emt 0:05:00]} Bd7 {[%emt 0:00:39]} 15. Kh1 $146 {[%emt 0:24:53]} (15. Nxd4 exd4 16. Rxf6 dxc3 $19 (16... gxf6 17. Qg3+ Kh8 18. Qf2 $17)) ({Predecessor:} 15. a3 Bc5 16. Kh1 Ne8 17. Qg3 f6 18. Nxd4 Bxd4 19. Bh5 f5 20. exf5 Rxf5 21. Bg5 Bxc3 22. Rxf5 Bxf5 23. Qxc3 Qxc3 24. bxc3 {½-½ Ruiz Jarabo Pelayo,F (2290)-Botev,K (2423) W-Cup20 sf08 email 2015}) 15... Bb5 {[%emt 0:29:11]} 16. Nxb5 {[%emt 0:00:11]} Qxb5 {[%emt 0:00:17]} 17. Qxb5 {[%emt 0:00:39]} Nxb5 {[%emt 0:00:16]} 18. Ng3 {[%emt 0:03:17]} Nd6 {[%emt 0:01:49]} 19. Bf3 {[%emt 0:06:55]} h6 {[%emt 0:08:50]} 20. a3 {[%emt 0:04:13]} Bc5 {[%emt 0:06:33]} 21. Bd2 {[%emt 0:00:06]} Rac8 {[%emt 0:01:43]} 22. Rac1 {[%emt 0:03:11]} Rfe8 {[%emt 0:07:00]} 23. a4 {[%emt 0:01:44]} (23. Rc2 $11 {is superior.}) 23... h5 $15 {[%emt 0:03:32]} 24. h4 {[%emt 0:05:22]} g6 {[%emt 0:03:09]} 25. Kh2 {[%emt 0:00:40]} Nd7 {[%emt 0:07:12]} 26. Be2 {[%emt 0:16:35]} Bd4 {[%emt 0:02:22]} 27. Bb4 {[%emt 0:02:29]} Bc5 {[%emt 0:00:18]} (27... Bxb2 28. Rb1 Nc4 29. Bxc4 Rxc4 30. Rxb2 $18) (27... Nc5 {simplifies} 28. Bxc5 Bxc5 29. Bd3 Be3) 28. Bd2 {[%emt 0:02:00]} Kg7 {[%emt 0:03:14]} 29. Bd3 {[%emt 0:03:12]} Nf6 {[%emt 0:03:46]} 30. Bh6+ {[%emt 0:00:33]} Kxh6 {[%emt 0:00:11]} 31. Rxf6 {[%emt 0:00:04]} Kg7 {[%emt 0:30:58]} 32. Rcf1 {[%emt 0:00:33]} Re7 {[%emt 0:00:00]} 33. Ne2 {[%emt 0:00:09]} Ne8 {[%emt 0:00:00]} 34. R6f3 {[%emt 0:00:06]} f5 {[%emt 0:00:00]} 35. exf5 $2 {[%emt 0:04:14]} (35. Bb1 $11 f4 36. g3) 35... e4 $19 {[%emt 0:00:00]} 36. f6+ {[%emt 0:00:12]} Nxf6 $1 {[%emt 0:00:00]} 37. Rxf6 {[%emt 0:00:04]} exd3 {[%emt 0:00:00]} 38. Nc3 {[%emt 0:00:32] [#]} d2 $1 {[%emt 0:00:00]} 39. Re6 {[%emt 0:00:57]} Rce8 {[%emt 0:00:00]} 40. Rd1 {[%emt 0:07:00]} Rxe6 {[%emt 0:02:20]} 41. dxe6 {[%emt 0:50:08]} Rd8 {[%emt 0:50:15]} (41... Rxe6 42. Rxd2 Rb6 43. Kh3 $15) 42. Ne4 {[%emt 0:00:31]} Bb4 {[%emt 0:00:22]} 43. Kg3 {[%emt 0:04:02]} (43. e7 {was necessary.} Bxe7 44. Rxd2) 43... Kf8 $19 {[%emt 0:00:00]} 44. Kf4 {[%emt 0:00:00]} Ke7 {[%emt 0:00:00]} 45. Ke5 {[%emt 0:00:00]} Rd3 {[%emt 0:00:00]} 46. Nc3 {[%emt 0:00:00]} Bxc3+ {[%emt 0:00:00]} 47. bxc3 {[%emt 0:00:00]} Rd6 {[%emt 0:00:00]} ({Weaker is} 47... Rxc3 48. Rxd2 Re3+ 49. Kf4 Rxe6 50. a5 $11) 48. c4 {[%emt 0:00:00]} Rxe6+ {[%emt 0:00:00]} 49. Kd4 {[%emt 0:00:00]} Re2 {[%emt 0:00:00]} 50. g3 {[%emt 0:00:00]} Kd6 {[%emt 0:00:00]} 51. Kd3 {[%emt 0:00:00]} Rg2 {[%emt 0:00:00]} 52. Rxd2 $2 {[%emt 0:00:00]} (52. Rb1 $19) 52... Rxd2+ {[%emt 0:00:00]} (52... Rxg3+ $2 53. Kc2+ Kc7 (53... Kc5 $2 54. Rd7 $19) 54. Re2 $19) 53. Kxd2 {[%emt 0:00:00]} Kc5 {[%emt 0:00:00]} 0-1

[Event "4NCL 2023-2024"]
[Site "Daventry"]
[Date "2024.05.06"]
[Round "11.20"]
[White "Fernandez, Daniel Howard"]
[Black "Kirk, Ezra"]
[Result "1/2-1/2"]
[ECO "A49"]
[WhiteElo "2526"]
[BlackElo "2393"]
[Annotator "TA"]
[PlyCount "79"]
[EventDate "2023.11.11"]
[EventType "team-tourn"]
[EventCountry "ENG"]
[SourceTitle "playchess.com"]
[Source "ChessBase"]
[SourceQuality "1"]
[TimeControl "40/6000+30:3000+30"]

{[%evp 12,79,23,29,38,31,77,14,68,68,61,36,41,47,43,27,35,35,41,31,50,37,76,52,76,54,83,64,64,63,94,109,102,91,95,108,192,179,177,172,205,181,264,247,304,319,336,99,58,78,38,41,58,35,38,0,40,35,46,0,0,0,0,-115,0,-279,0,0,0,0]} 1. Nf3 {[%emt 0:05:01]} Nf6 {[%emt 0:00:20]} 2. g3 {[%emt 0:00:08]} g6 {[%emt 0:01:08]} 3. Bg2 {[%emt 0:00:03]} Bg7 {[%emt 1:40:32]} 4. O-O {[%emt 0:00:06]} O-O {[%emt 0:00:00]} 5. d4 {[%emt 0:00:02]} d6 {[%emt 0:00:00]} 6. Nc3 {[%emt 0:00:22]} d5 {[%emt 0:00:00]} 7. Re1 {[%emt 0:00:12]} c5 {[%emt 0:00:00]} 8. dxc5 {[%emt 0:10:30]} Nc6 {[%emt 0:00:00]} (8... Na6 $14 {was preferrable.}) 9. Bf4 {[%emt 0:03:47]} (9. Nd4 $16) 9... d4 {[%emt 0:00:00]} (9... Qa5 $11) 10. Nb5 {[%emt 0:00:42][%cal Rb5d4]} Nd5 {[%emt 0:00:00]} 11. Bc1 {[%emt 0:01:39][%cal Rf3d4] White is more active.} (11. Nfxd4 $2 Nxd4 $19) 11... Nc7 {[%emt 0:00:00]} 12. Nxc7 {[%emt 0:11:13]} Qxc7 {[%emt 0:00:00]} 13. Bd2 {[%emt 0:00:08] Wards off Qa5} Bf5 {[%emt 0:00:00]} 14. Qc1 {[%emt 0:06:09]} Rfd8 {[%emt 0:00:00]} 15. c3 {[%emt 0:06:22]} Rac8 {[%emt 0:00:00]} 16. b4 {[%emt 0:03:02]} a6 {[%emt 0:00:00]} 17. Nh4 {[%emt 0:19:11]} Be6 {[%emt 0:00:00] [#]} 18. a3 $1 {[%emt 0:05:40]} Qe5 {[%emt 0:00:00][%cal Rd4c3]} 19. Bxc6 {[%emt 0:03:01]} bxc6 {[%emt 0:00:00]} 20. Nf3 {[%emt 0:00:49][%csl LRd4,LRe5]} Qh5 {[%emt 0:00:00] aiming for ...d3.} 21. cxd4 {[%emt 0:01:40]} Bxd4 {[%emt 0:00:00]} 22. Bc3 {[%emt 0:01:12]} Bxc3 {[%emt 0:00:00]} 23. Qxc3 {[%emt 0:02:07]} Bd5 {[%emt 0:00:00]} (23... Qd5 $16) 24. Rad1 $18 {[%emt 0:00:45]} f6 {[%emt 0:00:00][%cal Bf7f6,Bf6f5][%mdl 32]} 25. Rd4 {[%emt 0:03:39]} g5 {[%emt 0:00:00] Repels Rh4} 26. Nd2 {[%emt 0:06:19]} e5 {[%emt 0:04:41]} (26... Qh3 {was worth a try.} 27. e4 Bf7) 27. Rd3 {[%emt 0:00:02]} e4 {[%emt 0:01:01]} 28. Rd4 {[%emt 0:00:28]} (28. Nxe4 Bxe4 29. Rxd8+ Rxd8 $17) 28... f5 {[%emt 0:01:11]} 29. f3 $2 {[%emt 0:00:43]} (29. Nc4 $18) 29... exf3 $16 {[%emt 0:00:33]} 30. exf3 {[%emt 0:00:22]} Re8 {[%emt 0:00:18] Dodges Re7} 31. Rxe8+ {[%emt 0:03:28]} Rxe8 {[%emt 0:00:12][%cal Bc8e8,Be8e1,Be1a1][%mdl 32]} 32. Qd3 {[%emt 0:04:31] Dodges Re2} (32. h4 {simplifies} h6 33. Qd3 Qf7 34. hxg5 hxg5 35. g4) 32... Re1+ {[%emt 0:00:15]} 33. Kf2 {[%emt 0:01:51]} Qe8 {[%emt 0:01:46]} (33... Ra1 {simplifies} 34. h4 Qe8 35. Qe2 Qxe2+ 36. Kxe2 gxh4 37. gxh4 Rxa3 38. Nc4 Bxf3+ 39. Kf2 Rc3) 34. Nf1 {[%emt 0:02:13][%cal Od3d2] Hoping for Qd2!} (34. Qxf5 $2 Qe2#) 34... Ra1 $1 {[%emt 0:01:44]} 35. Rxd5 {[%emt 0:00:49]} (35. Qxf5 $2 Qe1+ 36. Kg2 Qxf1#) (35. Qc3 $1 $14 Rb1 36. Qd2) 35... Qe1+ $11 {[%emt 0:00:32]} 36. Kg1 {[%emt 0:01:16]} cxd5 {[%emt 0:00:08]} 37. c6 {[%emt 0:00:40]} (37. Qxd5+ $11 Kg7 38. Qb7+ Kf8 39. Qc8+ (39. Qxa6 f4 $11) 39... Kg7 40. Qb7+ Kf8 41. Qc8+ (41. Qxa6 Qd1 $11) 41... Kg7 42. Qb7+) 37... Qd1 {[%emt 0:01:43]} ({Black should play} 37... Rc1 $17 {White must now prevent ...Qd1.} 38. Qxd5+ Kg7 39. Qd4+ Kf7 40. Qd7+ Kf6 41. Qd4+ Ke6) 38. Qxa6 $2 {[%emt 0:03:03][%mdl 8192] [#]} (38. c7 $1 $11 Qxd3 39. c8=Q+ Kf7 40. Qc7+ Kg6 41. Qc6+ Kg7 42. Qb7+ Kg6 (42... Kf6 43. Qc6+ Ke7 44. Qc7+ Ke6 45. Qb6+ Kf7 46. Qb7+ Kg6 47. Qc6+ Kf7 48. Qd7+ Kf8 49. Qc8+ Kf7 50. Qd7+ Kf6 51. Qd6+ Kf7 52. Qd7+ $11) 43. Qc6+ Kf7 44. Qd7+ Kf6 45. Qd8+ Kf7 46. Qc7+ Kg8 47. Qd8+ Kf7 48. Qd7+ Kf6 49. Qd6+ Kf7 50. Qd7+) 38... Qxf3 $2 {[%emt 0:01:06]} (38... Kg7 $1 $19 {( -> ...Qd4+)} 39. Qa7+ (39. c7 {leads to mate.} Qd4+ 40. Kh1 Qf2 41. h4 Ra2) 39... Kf6) 39. c7 $1 {[%emt 0:01:03] Some like it hot} Qe3+ {[%emt 0:00:42]} ({Worse is} 39... Rxa3 40. c8=Q+ (40. c8=R+ Kf7 41. Rc7+ Kg8 42. Qc8#) 40... Kg7 41. Qd7+ Kh8 42. Qac8#) 40. Kh1 {[%emt 0:00:24] Blacks defense is rewarded with a draw.   Weighted Error Value: White=0.32/Black=0.41.  Loses game:     	White=1     	---        Missed win:     	White=1     	Black=1      Mistake:       	White=3     	Black=5      Inaccurate:     	White=1     	Black=4      OK:         	White=12    	Black=10     Best:        	White=3     	Black=2      Strong:       	White=2     	Black=1} 1/2-1/2

[Event "4NCL 2023-2024"]
[Site "Daventry"]
[Date "2024.05.06"]
[Round "11.21"]
[White "Boswell, Jacob Connor"]
[Black "Ghasi, Ameet K"]
[Result "0-1"]
[ECO "E67"]
[WhiteElo "2252"]
[BlackElo "2491"]
[Annotator "TA"]
[PlyCount "146"]
[EventDate "2023.11.11"]
[EventType "team-tourn"]
[EventCountry "ENG"]
[SourceTitle "playchess.com"]
[Source "ChessBase"]
[SourceQuality "1"]
[TimeControl "40/6000+30:3000+30"]

{[%evp 40,146,51,32,66,56,76,47,42,42,43,0,31,0,0,0,35,0,0,0,7,-10,-21,-18,0,-9,0,-9,0,-58,-54,-52,-30,-55,-47,-51,-55,-48,-63,-95,-58,-117,-114,-109,-45,-46,-37,-42,-42,-58,-58,-58,-37,-37,-39,-77,-81,-81,-57,-41,-55,-129,-124,-136,-122,-133,-101,-183,-195,-233,-70,-70,-68,-197,-150,-185,-175,-159,-112,-83,-93,-116,-12,-903,-866,-1337,-20,-12,-22,-23,-23,-6960,-10768,-6486,-5189,-6368,-6375,-5469,-4019,-29981,-29981,-29985,-29986,-29986,-29987,-29988,-29989,-29992,-29993]} 1. d4 {[%emt 0:04:10]} Nf6 {[%emt 0:01:32]} 2. c4 {[%emt 0:00:05]} g6 {[%emt 0:00:07]} 3. Nf3 {[%emt 0:00:05]} Bg7 {[%emt 0:00:05]} 4. g3 {[%emt 0:00:05]} O-O {[%emt 0:00:24]} 5. Bg2 {[%emt 0:00:05]} d6 {[%emt 0:00:21]} 6. O-O {[%emt 0:00:49]} Nbd7 {[%emt 0:00:25]} 7. Nc3 {[%emt 0:00:17]} e5 {[%emt 0:00:12]} 8. Qc2 {[%emt 0:01:51]} exd4 {[%emt 0:04:35]} 9. Nxd4 {[%emt 0:00:16]} Nb6 {[%emt 0:00:21]} 10. Rd1 {[%emt 0:05:11]} Nxc4 {[%emt 0:01:57]} 11. Ncb5 {[%emt 0:02:46]} a6 {[%emt 0:00:46]} 12. Qxc4 {[%emt 0:00:55]} axb5 {[%emt 0:00:07]} 13. Nxb5 {[%emt 0:01:01]} Ne8 {[%emt 0:00:31] E67: King's Indian: Fianchetto: 6...Nbd7.} 14. Qb4 {[%emt 0:04:12]} Qe7 {[%emt 0:39:25]} 15. Be3 {[%emt 0:05:25]} Bd7 $146 {[%emt 0:25:07]} ({Predecessor:} 15... c6 16. Nc3 Be6 17. a4 Nf6 18. Bf4 Ne8 19. a5 Ra6 20. e4 Qc7 21. Be3 Nf6 {0-1 Lerner,K (2530)-Yermolinsky,A (2445) Agzamov Memorial 1986 (5)}) 16. Nc3 {[%emt 0:03:30]} Bc8 {[%emt 0:04:15]} 17. Nd5 {[%emt 0:07:03]} Qd8 {[%emt 0:00:04]} 18. Qd2 {[%emt 0:15:29]} c6 {[%emt 0:07:49]} 19. Nb6 {[%emt 0:02:48]} Ra6 {[%emt 0:00:02]} 20. Nxc8 {[%emt 0:01:43]} Qxc8 {[%emt 0:00:02]} 21. a3 {[%emt 0:04:01]} Qa8 {[%emt 0:05:54]} 22. Bg5 {[%emt 0:02:14]} f5 {[%emt 0:04:38]} 23. e4 {[%emt 0:07:26]} fxe4 {[%emt 0:00:56]} 24. Bxe4 {[%emt 0:00:07]} Ra4 {[%emt 0:06:56]} 25. Bc2 {[%emt 0:02:15]} Ra5 {[%emt 0:00:43]} 26. Bh6 {[%emt 0:05:23]} Bxh6 {[%emt 0:00:57]} 27. Qxh6 {[%emt 0:00:04]} Qa7 {[%emt 0:01:03]} 28. Bb3+ {[%emt 0:02:56]} d5 {[%emt 0:00:08]} 29. Rd2 {[%emt 0:05:13]} Nf6 {[%emt 0:01:39]} 30. Qh4 {[%emt 0:03:09]} (30. Re1 {is more complex.} Qc5 31. Bc2 Ng4 32. Qh4) 30... Qb6 {[%emt 0:01:07]} 31. Ba2 $1 {[%emt 0:06:24]} Rf7 {[%emt 0:00:17]} 32. Re1 {[%emt 0:01:21]} Kg7 {[%emt 0:00:50]} 33. Re3 {[%emt 0:08:59]} Ra8 {[%emt 0:00:50]} 34. Qd4 {[%emt 0:03:25]} (34. b4 $11) 34... Qxd4 $15 {[%emt 0:01:05]} 35. Rxd4 {[%emt 0:00:02]} Kf8 {[%emt 0:00:37]} 36. Rf3 {[%emt 0:02:33]} Re8 {[%emt 0:01:08]} 37. Rdf4 {[%emt 0:01:03]} Kg7 {[%emt 0:00:20]} 38. Kf1 {[%emt 0:00:16]} Re6 {[%emt 0:00:15]} 39. Rb4 {[%emt 0:01:41]} Rfe7 {[%emt 0:00:27]} 40. Kg2 {[%emt 0:02:42]} (40. Rfb3 $1 $15) 40... Re2 $17 {[%emt 0:00:43]} 41. Bb1 {[%emt 0:10:36]} Rd2 {[%emt 0:06:04]} (41... c5 $17 42. Rb5 c4) 42. Rd3 $15 {[%emt 0:02:47]} Rxd3 $1 {[%emt 0:11:23]} 43. Bxd3 {[%emt 0:00:13]} Kf7 {[%emt 0:01:23]} 44. f3 {[%emt 0:08:50]} Ke6 {[%emt 0:01:32]} 45. Kf2 {[%emt 0:03:15]} Kd6 {[%emt 0:01:26]} 46. h4 {[%emt 0:01:35]} b5 {[%emt 0:13:14]} 47. g4 {[%emt 0:06:25]} Nd7 {[%emt 0:02:59]} 48. f4 {[%emt 0:00:51]} Kc5 {[%emt 0:02:26]} 49. Rb3 {[%emt 0:03:03]} d4 {[%emt 0:02:33]} 50. Bc2 {[%emt 0:03:07]} (50. h5 $15 gxh5 51. g5) 50... Kd5 $17 {[%emt 0:01:30]} 51. f5 {[%emt 0:03:36]} gxf5 $1 {[%emt 0:05:25]} 52. Bxf5 {[%emt 0:00:02]} Ne5 {[%emt 0:01:28]} 53. Kg3 {[%emt 0:00:51]} (53. h5 $17 {keeps fighting.}) 53... Nc4 $1 $19 {[%emt 0:00:35]} 54. g5 {[%emt 0:01:51]} Nd6 $2 {[%emt 0:00:23]} (54... Nd2 $1 $19 {[%cal Rd2b3]} 55. Rd3 Nf1+ 56. Kf4 Rf7 (56... Ne3 $2 57. h5 $19)) 55. Bc2 $1 $15 {[%emt 0:01:57]} c5 {[%emt 0:00:37]} 56. g6 {[%emt 0:02:27]} (56. Rf3 $15) 56... hxg6 {[%emt 0:02:01]} (56... Ne4+ $19 57. Kg2 (57. Bxe4+ $2 Kxe4 58. Rxb5 hxg6 $17) 57... hxg6) 57. Bxg6 $17 {[%emt 0:00:02]} c4 {[%emt 0:01:18]} 58. Rf3 {[%emt 0:00:01]} Ne4+ $1 {[%emt 0:00:32]} 59. Kf4 {[%emt 0:02:53]} d3 {[%emt 0:01:37]} 60. Rf1 {[%emt 0:00:31]} (60. Re3 $2 d2 61. Rxe4 d1=Q $19) 60... Kd4 {[%emt 0:01:12]} ({Black should try} 60... Nf6 $1 $17 {Hoping for ...Re2.} 61. h5 Re2) 61. h5 $2 {[%emt 0:02:22][%mdl 8192]} (61. Re1 $11 d2 62. Rd1) 61... Re6 $19 {[%emt 0:01:01]} 62. Re1 {[%emt 0:02:19]} d2 $2 {[%emt 0:01:22]} ({Better is} 62... Rf6+ $19 63. Kg4 d2) 63. Rd1 $11 {[%emt 0:00:01]} Rf6+ {[%emt 0:00:10]} 64. Bf5 {[%emt 0:00:02]} Kd3 {[%emt 0:00:26]} 65. Ke5 $2 {[%emt 0:00:47][%mdl 8192]} (65. Rg1 $11 Kc2 66. Kxe4) 65... Rxf5+ $1 $19 {[%emt 0:00:14]} 66. Kxf5 {[%emt 0:00:01]} Ng3+ $1 {[%emt 0:00:09]} 67. Ke5 {[%emt 0:02:26]} Nxh5 {[%emt 0:00:07]} 68. Kd5 {[%emt 0:00:28] [#]} Nf6+ $1 {[%emt 0:01:11]} 69. Kc5 {[%emt 0:01:05] [#]} Ne4+ $1 {[%emt 0:00:08]} ({Not} 69... Kc2 70. Rxd2+ Kxd2 71. Kxb5 $11) 70. Kb4 {[%emt 0:01:22]} Kc2 {[%emt 0:00:21]} ({Stronger than} 70... Nf2 71. Rxd2+ Kxd2 72. Kxb5 $11) 71. Rg1 {[%emt 0:00:28]} Kxb2 {[%emt 0:00:15]} 72. a4 {[%emt 0:00:38]} c3 {[%emt 0:00:08]} 73. a5 {[%emt 0:00:28]} c2 {[%emt 0:00:06]} 0-1

[Event "4NCL 2023-2024"]
[Site "Daventry"]
[Date "2024.05.06"]
[Round "11.22"]
[White "Slaby, Jerzy"]
[Black "Eggleston, David J"]
[Result "1/2-1/2"]
[ECO "A07"]
[WhiteElo "2465"]
[BlackElo "2334"]
[Annotator "RC"]
[PlyCount "124"]
[EventDate "2023.11.11"]
[EventType "team-tourn"]
[EventCountry "ENG"]
[SourceTitle "playchess.com"]
[Source "ChessBase"]
[SourceQuality "1"]
[TimeControl "40/6000+30:3000+30"]

1. Nf3 {[%emt 0:00:12]} Nf6 {[%emt 0:00:10]} 2. g3 {[%emt 0:00:26]} d5 {[%emt 0:00:58]} 3. Bg2 {[%emt 0:00:51]} e6 {[%emt 0:00:07]} 4. O-O {[%emt 0:00:37]} Be7 {[%emt 0:00:04]} 5. d3 {[%emt 0:00:52]} O-O {[%emt 0:00:09]} 6. Nbd2 {[%emt 0:00:53]} Nc6 {[%emt 0:00:10]} 7. e4 {[%emt 0:08:46]} dxe4 {[%emt 0:00:24]} 8. dxe4 {[%emt 0:00:02]} e5 {[%emt 0:00:28]} 9. c3 {[%emt 0:00:20]} a5 {[%emt 0:00:57]} 10. Qc2 {[%emt 0:01:39]} Bc5 {[%emt 0:01:40]} 11. Nc4 {[%emt 0:03:14]} Re8 {[%emt 0:06:07]} 12. Ne3 {[%emt 0:02:00]} h6 {[%emt 0:07:20]} 13. Rd1 {[%emt 0:01:46]} Qe7 {[%emt 0:00:31]} 14. Nh4 {[%emt 0:03:03]} Qf8 {[%emt 0:05:41]} 15. h3 {[%emt 0:04:46]} Rd8 {[%emt 0:05:38]} 16. Nd5 {[%emt 0:04:43]} Nxd5 {[%emt 0:02:04]} 17. exd5 {[%emt 0:00:31]} Ne7 {[%emt 0:00:17]} 18. b4 {[%emt 0:02:24]} axb4 {[%emt 0:04:59]} 19. cxb4 {[%emt 0:00:09]} Bd4 {[%emt 0:01:14]} 20. Bb2 {[%emt 0:06:03]} Nxd5 {[%emt 0:01:01]} 21. a3 {[%emt 0:02:56]} c6 {[%emt 0:12:22]} 22. Bxd4 {[%emt 0:00:25]} exd4 {[%emt 0:00:06]} 23. Rxd4 {[%emt 0:00:15]} Be6 {[%emt 0:00:25]} 24. Qb2 {[%emt 0:03:08]} Nb6 {[%emt 0:02:39]} 25. Rxd8 {[%emt 0:06:22]} Qxd8 {[%emt 0:01:05]} 26. b5 {[%emt 0:00:44]} Nc4 {[%emt 0:00:51]} 27. Qc3 {[%emt 0:04:47]} cxb5 {[%emt 0:00:38]} 28. Bxb7 {[%emt 0:00:25]} Ra7 {[%emt 0:00:44]} 29. Be4 {[%emt 0:06:25]} Qd6 {[%emt 0:04:33]} 30. Qe1 {[%emt 0:04:35]} Rxa3 {[%emt 0:01:15]} 31. Rd1 {[%emt 0:00:18]} Qb6 {[%emt 0:06:26]} 32. Kg2 {[%emt 0:06:28]} Ra2 {[%emt 0:00:59]} 33. Rd3 {[%emt 0:03:05]} Nd6 {[%emt 0:07:23]} 34. Bf3 {[%emt 0:04:14]} Kh8 {[%emt 0:05:11]} 35. Rc3 {[%emt 0:05:55]} Qd4 {[%emt 0:05:56]} 36. Re3 {[%emt 0:03:45]} Qf6 {[%emt 0:05:13]} 37. Bg4 {[%emt 0:03:06]} Ra1 {[%emt 0:04:21]} 38. Qb4 {[%emt 0:02:28]} Ra2 {[%emt 0:06:15]} 39. Nf3 {[%emt 0:02:06]} Bc4 {[%emt 0:04:06]} 40. Qc5 {[%emt 0:02:04]} g6 {[%emt 0:01:53]} 41. h4 {[%emt 0:52:41]} Rc2 {[%emt 0:54:11]} 42. Qa7 {[%emt 0:04:50]} h5 {[%emt 0:01:45]} 43. Bd7 {[%emt 0:02:18]} Kg7 {[%emt 0:02:45]} 44. g4 {[%emt 0:02:03]} hxg4 {[%emt 0:00:00]} 45. Bxg4 {[%emt 0:00:00]} Bd5 {[%emt 0:00:00]} 46. Rd3 {[%emt 0:00:00]} Be4 {[%emt 0:00:00]} 47. Re3 {[%emt 0:00:00]} Qf4 {[%emt 0:00:00]} 48. Bd7 {[%emt 0:00:00]} Qf6 {[%emt 0:00:00]} 49. Bg4 {[%emt 0:00:00]} b4 {[%emt 0:00:00]} 50. Kg3 {[%emt 0:00:00]} Rc3 {[%emt 0:00:00]} 51. Ng5 {[%emt 0:00:00]} Rxe3+ {[%emt 0:00:00]} 52. fxe3 {[%emt 0:00:00]} Qe5+ {[%emt 0:00:00]} 53. Kh3 {[%emt 0:00:00]} Qb2 {[%emt 0:00:00]} 54. Ne6+ {[%emt 0:00:00]} Kh6 {[%emt 0:00:00]} 55. Nf4 {[%emt 0:00:00]} Qc3 {[%emt 0:00:00]} 56. Ne2 {[%emt 0:00:00]} Qf6 {[%emt 0:00:00]} 57. Ng3 {[%emt 0:00:00]} Bd3 {[%emt 0:00:00]} 58. e4 {[%emt 0:00:00]} Nxe4 {[%emt 0:00:00]} 59. Qe3+ {[%emt 0:00:00]} Kg7 {[%emt 0:00:00]} 60. Nxe4 {[%emt 0:00:00]} Bxe4 {[%emt 0:00:00]} 61. Qxe4 {[%emt 0:00:00]} b3 {[%emt 0:00:00]} 62. Be2 {[%emt 0:00:00]} Qf5+ {[%emt 0:00:00]} 1/2-1/2

[Event "4NCL 2023-2024"]
[Site "Daventry"]
[Date "2024.05.06"]
[Round "11.23"]
[White "Arkell, Keith C"]
[Black "Garcia Martin, Marta"]
[Result "1/2-1/2"]
[ECO "D13"]
[WhiteElo "2377"]
[BlackElo "2342"]
[Annotator "TA"]
[PlyCount "21"]
[EventDate "2023.11.11"]
[EventType "team-tourn"]
[EventCountry "ENG"]
[SourceTitle "playchess.com"]
[Source "ChessBase"]
[SourceQuality "1"]
[TimeControl "40/6000+30:3000+30"]

{[%evp 16,21,32,20,18,22,20,33]} 1. d4 {[%emt 0:00:02]} d5 {[%emt 0:00:05]} 2. c4 {[%emt 0:00:03]} c6 {[%emt 0:00:04]} 3. cxd5 {[%emt 0:00:04]} cxd5 {[%emt 0:00:04]} 4. Nf3 {[%emt 0:00:03]} Nf6 {[%emt 0:00:06]} 5. Nc3 {[%emt 0:00:03]} Nc6 {[%emt 0:00:04]} 6. Bf4 {[%emt 0:00:04]} a6 {[%emt 0:00:08]} 7. e3 {[%emt 0:00:05]} e6 {[%emt 0:00:05]} 8. Be2 {[%emt 0:00:05]} Bd6 {[%emt 0:00:05]} 9. Bxd6 {[%emt 0:00:04]} Qxd6 {[%emt 0:00:06]} 10. O-O {[%emt 0:00:04]} O-O {[%emt 0:00:06]} 11. Rc1 {[%emt 0:00:04] Not much happened in this game.   OK:         	White=2     	---} 1/2-1/2